fUSD/lending_fUSD_20260108
["ID","MTS","AMOUNT","RATE_DAILY","PERIOD"]
[401070280,1767901848323,-300.0,0.00017999,2]
[401070281,1767901848332,-5970.77362135,0.00017999,2]
[401070282,1767901848341,-1000.0,0.00018,2]
[401070283,1767901848350,-836.47750939,0.00018,2]
[401070284,1767901848359,-3914837.46536704,0.00018,2]
[401070285,1767901848890,-636.19880752,0.00018,2]
[401070286,1767901849736,-151.0,0.00014691,2]
[401070287,1767901849746,-151.0,0.00017998,2]
[401070288,1767901849755,-22.598953,0.00018,2]
[401070289,1767901849801,-479.94539092,0.00018,2]
[401070290,1767901849815,-295.60870062,0.00018,2]
[401070291,1767901850613,-152.0,0.00014691,2]
[401070292,1767901850623,-151.0,0.00015624,2]
[401070293,1767901850633,-151.0,0.00015624,2]
[401070294,1767901850642,-151.0,0.00017998,2]
[401070295,1767901850651,-135.21824352,0.00018,2]
[401070296,1767901868438,4946.650091,7.945e-05,2]
[401070342,1767902695027,869.41,6.185e-05,2]
[401070343,1767902695245,869.41,6.498e-05,2]
[401070344,1767902695440,869.41,6.811e-05,2]
[401070345,1767902695644,869.41,7.123e-05,2]
[401070346,1767902695848,869.41,7.436e-05,2]
[401070347,1767902696015,515.269909,7.749e-05,2]
[401070348,1767902696042,354.140091,7.749e-05,2]
[401070349,1767902696447,869.41,8.062e-05,2]
[401070350,1767902696798,869.41,8.375e-05,2]
[401070351,1767902697334,869.41,8.687e-05,2]
[401070352,1767902697518,869.41,9e-05,2]
[401070353,1767902697692,869.41,9.313e-05,2]
[401070354,1767902697839,869.41,9.626e-05,2]
[401070355,1767902697962,869.41,9.938e-05,2]
[401070356,1767902698132,869.41,0.00010251,2]
[401070357,1767902698755,-340.26343159,0.00010564,2]
[401070358,1767902704181,-300.0,0.00010564,2]
[401070360,1767903000154,-150.0,0.00010564,2]
[401070361,1767903028526,-79.14656841,0.00010564,2]
[401070362,1767903028548,-250.0,0.0001072,2]
[401070363,1767903028572,-580.85343159,0.00010877,2]
[401070380,1767903032301,-288.55656841,0.00010877,2]
[401070382,1767903032311,-195.0,0.00011086,2]
[401070384,1767903032321,-869.41,0.00011189,2]
[401070386,1767903032330,-869.41,0.00011502,2]
[401070429,1767903032710,-1200.0,0.00011559,2]
[401070433,1767903032735,-172.0,0.00011561,2]
[401070435,1767903032744,-1200.0,0.00011561,2]
[401070437,1767903032754,-8531.1857,0.00011562,2]
[401070438,1767903032764,-250.0,0.0001162,2]
[401070440,1767903032773,-195.0,0.0001162,2]
[401070443,1767903032782,-250.0,0.0001162,2]
[401070445,1767903032791,-195.0,0.0001162,2]
[401070447,1767903032801,-195.0,0.0001162,2]
[401070448,1767903032810,-300.0,0.0001162,2]
[401070451,1767903032819,-300.0,0.0001162,2]
[401070453,1767903032828,-300.0,0.0001162,2]
[401070455,1767903032838,-300.0,0.0001162,2]
[401070457,1767903032847,-300.0,0.0001162,2]
[401070459,1767903032856,-150.0,0.00011776,2]
[401070461,1767903032866,-323.70470716,0.0001178,2]
[401070463,1767903032875,-500.0,0.0001178,2]
[401070465,1767903032884,-523.13301038,0.0001178,2]
[401070467,1767903032893,-6807.16,0.00011781,2]
[401070469,1767903032902,-25706.87,0.00011781,2]
[401070471,1767903032912,-869.41,0.00011815,2]
[401070473,1767903032922,-209.63590759,0.00012027,2]
[401070475,1767903032932,-2121.5677,0.00012028,2]
[401070476,1767903032941,-19833.01757194,0.00012028,2]
[401070479,1767903032953,-19564.78303598,0.00012028,2]
[401070482,1767903032974,-8960.0,0.00012028,2]
[401070484,1767903032985,-1158.21809208,0.00012028,2]
[401070486,1767903032994,-1444.65007059,0.00012072,2]
[401070488,1767903033005,-1377.93241419,0.00012072,2]
[401070490,1767903033016,-1060.92531021,0.00012072,2]
[401070492,1767903033028,-4910.06818058,0.00012072,2]
[401070504,1767903033124,-999.0,0.00012072,2]
[401070506,1767903033135,-449.6702639,0.00012072,2]
[401070509,1767903033151,-1872.07752206,0.00012072,2]
[401070526,1767903033297,-2519.10982703,0.00012072,2]
[401070528,1767903033308,-487.0242411,0.00012072,2]
[401070530,1767903033320,-2488.79487899,0.00012072,2]
[401070532,1767903033331,-1510.24532343,0.00012072,2]
[401070534,1767903033341,-162.34815186,0.00012072,2]
[401070536,1767903033350,-162.34815186,0.00012072,2]
[401070538,1767903033359,-151.0,0.00012121,2]
[401070540,1767903033368,-151.0,0.00012121,2]
[401070542,1767903033378,-151.0,0.00012121,2]
[401070544,1767903033387,-151.0,0.00012121,2]
[401070546,1767903033396,-151.0,0.00012121,2]
[401070548,1767903033406,-151.0,0.00012121,2]
[401070550,1767903033416,-151.0,0.00012121,2]
[401070552,1767903033428,-151.0,0.00012121,2]
[401070554,1767903033438,-151.0,0.00012121,2]
[401070556,1767903033447,-151.0,0.00012121,2]
[401070558,1767903033457,-151.0,0.00012121,2]
[401070560,1767903033466,-151.0,0.00012121,2]
[401070563,1767903033476,-151.0,0.00012125,2]
[401070565,1767903033486,-1394.407,0.00012126,2]
[401070567,1767903033496,-869.41,0.00012128,2]
[401070569,1767903033506,-31649.61791855,0.00012128,2]
[401070573,1767903033538,-4448.81383102,0.00012128,2]
[401070575,1767903033550,-665.86849656,0.00012128,2]
[401070578,1767903033561,-300.0,0.00012128,2]
[401070580,1767903033572,-305.85181942,0.00012128,2]
[401070588,1767903033641,-6916.88431535,0.00012128,2]
[401070590,1767903033652,-646.95932909,0.00012128,2]
[401070684,1767903038374,-558.38385669,0.00011928,2]
[401070686,1767903038386,-432.46183533,0.00011928,2]
[401070694,1767903038461,-401.616215,0.00011928,2]
[401070698,1767903038495,-2716.96929298,0.00011928,2]
[401070700,1767903038505,-967.22849504,0.00012072,2]
[401070702,1767903038516,-2954.4252502,0.00012072,2]
[401070704,1767903038526,-3083.72694954,0.00012128,2]
[401070706,1767903038536,-7505.75573135,0.00012128,2]
[401070709,1767903038547,-5080.10880489,0.00012128,2]
[401070755,1767903040197,-939396.41280423,0.00012128,2]
[401070756,1767903040206,-409.0,0.00012172,2]
[401070757,1767903040216,-1680.0,0.00012717,2]
[401070758,1767903040225,-19119.49803204,0.0001272,2]
[401070759,1767903040235,-3921.65374517,0.0001272,2]
[401070760,1767903040244,-255.0,0.00012847,2]
[401070761,1767903040254,-162.34815181,0.00013238,2]
[401070762,1767903040263,-162.34815181,0.00013238,2]
[401070763,1767903040272,-19119.49803204,0.00013367,2]
[401070764,1767903040283,-893.22555293,0.00013688,2]
[401070765,1767903040292,-705.01,0.00013698,2]
[401070766,1767903040302,-705.01,0.00013698,2]
[401070767,1767903040311,-705.01,0.00013698,2]
[401070768,1767903040321,-705.01,0.00013698,2]
[401070769,1767903040331,-705.01,0.00013698,2]
[401070770,1767903040340,-500.0,0.00013698,2]
[401070771,1767903040350,-500.0,0.00013698,2]
[401070772,1767903040359,-500.0,0.00013698,2]
[401070773,1767903040368,-500.0,0.00013698,2]
[401070774,1767903040377,-819.99,0.00013698,2]
[401070775,1767903040386,-819.99,0.00013698,2]
[401070776,1767903040395,-819.99,0.00013698,2]
[401070777,1767903040404,-819.99,0.00013698,2]
[401070778,1767903040415,-500.0,0.00013698,2]
[401070779,1767903040429,-500.0,0.00013698,2]
[401070780,1767903040438,-500.0,0.00013698,2]
[401070781,1767903040447,-500.0,0.00013698,2]
[401070782,1767903040457,-500.0,0.00013698,2]
[401070783,1767903040466,-500.0,0.00013698,2]
[401070784,1767903040475,-500.0,0.00013698,2]
[401070785,1767903040484,-500.0,0.00013698,2]
[401070786,1767903040496,-500.0,0.00013698,2]
[401070787,1767903040505,-500.0,0.00013698,2]
[401070788,1767903040514,-500.0,0.00013698,2]
[401070789,1767903040523,-446.86331983,0.00013698,2]
[401070790,1767903040532,-568.35,0.00013698,2]
[401070791,1767903040541,-568.35,0.00013698,2]
[401070792,1767903040552,-568.35,0.00013698,2]
[401070793,1767903040562,-568.35,0.00013698,2]
[401070794,1767903040573,-568.35,0.00013698,2]
[401070795,1767903040582,-502.28702111,0.00013698,2]
[401070796,1767903040591,-500.0,0.00013698,2]
[401070797,1767903040600,-500.0,0.00013698,2]
[401070798,1767903040610,-500.0,0.00013698,2]
[401070799,1767903040620,-500.0,0.00013698,2]
[401070800,1767903040630,-500.0,0.00013698,2]
[401070801,1767903040639,-500.0,0.00013698,2]
[401070802,1767903040649,-500.0,0.00013698,2]
[401070803,1767903040659,-500.0,0.00013698,2]
[401070804,1767903040668,-500.0,0.00013698,2]
[401070805,1767903040678,-500.0,0.00013698,2]
[401070806,1767903040687,-500.0,0.00013698,2]
[401070807,1767903040698,-500.0,0.00013698,2]
[401070808,1767903040708,-500.0,0.00013698,2]
[401070809,1767903040718,-500.0,0.00013698,2]
[401070810,1767903040727,-320.87822696,0.00013698,2]
[401070811,1767903040735,-250.0,0.00013958,2]
[401070812,1767903040745,-2351.0,0.00013989,2]
[401070813,1767903040754,-433.0,0.00014013,2]
[401070814,1767903040763,-19119.49803204,0.00014015,2]
[401070815,1767903040772,-329.57,0.00014248,2]
[401070816,1767903040781,-151.0,0.00014363,2]
[401070817,1767903040790,-151.0,0.00014363,2]
[401070818,1767903040799,-151.0,0.00014363,2]
[401070819,1767903040808,-151.0,0.00014363,2]
[401070820,1767903040817,-151.0,0.00014363,2]
[401070821,1767903040827,-151.0,0.00014363,2]
[401070822,1767903040836,-151.0,0.00014363,2]
[401070823,1767903040845,-151.0,0.00014363,2]
[401070824,1767903040855,-158.0,0.00014363,2]
[401070825,1767903040865,-158.0,0.00014363,2]
[401070826,1767903040876,-158.0,0.00014363,2]
[401070827,1767903040886,-151.0,0.00014363,2]
[401070828,1767903040896,-152.0,0.00014363,2]
[401070829,1767903040907,-151.0,0.00014363,2]
[401070830,1767903040917,-158.0,0.00014363,2]
[401070831,1767903040929,-152.0,0.00014363,2]
[401070832,1767903040938,-151.0,0.00014363,2]
[401070833,1767903040946,-162.34815181,0.00014403,2]
[401070834,1767903040956,-19119.49803204,0.00014662,2]
[401070835,1767903040964,-500.0,0.00014763,2]
[401070836,1767903040973,-520.5636209,0.00014763,2]
[401070837,1767903040983,-501.54454633,0.00014763,2]
[401070838,1767903040992,-500.0,0.00014763,2]
[401070839,1767903041000,-500.0,0.00014763,2]
[401070840,1767903041010,-151.0,0.00014831,2]
[401070841,1767903041019,-151.0,0.00014831,2]
[401070842,1767903041028,-736.0,0.00015297,2]
[401070843,1767903041037,-19119.49803204,0.0001531,2]
[401070844,1767903041047,-1000.0,0.0001531,2]
[401070845,1767903041056,-1000.0,0.0001531,2]
[401070846,1767903041066,-1000.0,0.0001531,2]
[401070847,1767903041076,-3292.0,0.00015388,2]
[401070848,1767903041085,-5066.76,0.00015413,2]
[401070849,1767903041094,-1500.0,0.00015858,2]
[401070850,1767903041104,-1500.0,0.00015858,2]
[401070851,1767903041113,-1500.0,0.00015858,2]
[401070852,1767903041124,-1000.0,0.00015869,2]
[401070853,1767903041134,-500.0,0.00015917,2]
[401070854,1767903041144,-568.35,0.00015917,2]
[401070855,1767903041153,-150.0,0.00015923,2]
[401070856,1767903041163,-19119.49803204,0.00015957,2]
[401070857,1767903041174,-157.72323008,0.00016076,2]
[401070858,1767903041184,-7747.65,0.00016116,2]
[401070859,1767903041193,-1000.0,0.00016151,2]
[401070860,1767903041202,-705.01,0.00016218,2]
[401070861,1767903041211,-157.03274317,0.00016219,2]
[401070862,1767903041222,-171.05172936,0.00016219,2]
[401070863,1767903041232,-150.0,0.00016219,2]
[401070864,1767903041241,-150.0,0.00016219,2]
[401070865,1767903041251,-500.0,0.00016219,2]
[401070866,1767903041260,-500.0,0.00016219,2]
[401070867,1767903041270,-500.0,0.00016219,2]
[401070868,1767903041280,-500.0,0.00016219,2]
[401070869,1767903041290,-500.0,0.00016219,2]
[401070870,1767903041299,-150.0,0.00016219,2]
[401070871,1767903041309,-500.0,0.00016219,2]
[401070872,1767903041318,-150.0,0.00016219,2]
[401070873,1767903041328,-500.0,0.00016219,2]
[401070874,1767903041337,-250.0,0.00016274,2]
[401070875,1767903041347,-150.0,0.00016274,2]
[401070876,1767903041356,-500.0,0.00016274,2]
[401070877,1767903041365,-500.0,0.00016274,2]
[401070878,1767903041374,-500.0,0.00016274,2]
[401070879,1767903041383,-500.0,0.00016274,2]
[401070880,1767903041393,-500.0,0.00016274,2]
[401070881,1767903041403,-500.0,0.00016274,2]
[401070882,1767903041414,-500.0,0.00016274,2]
[401070883,1767903041432,-500.0,0.00016329,2]
[401070884,1767903041444,-500.0,0.00016329,2]
[401070885,1767903041453,-500.0,0.00016329,2]
[401070886,1767903041463,-500.0,0.00016329,2]
[401070887,1767903041474,-500.0,0.00016329,2]
[401070888,1767903041483,-500.0,0.00016329,2]
[401070889,1767903041492,-1000.0,0.00016338,2]
[401070890,1767903041503,-1000.0,0.00016361,2]
[401070891,1767903041512,-1000.0,0.00016381,2]
[401070892,1767903041522,-500.0,0.00016383,2]
[401070893,1767903041531,-500.0,0.00016383,2]
[401070894,1767903041541,-500.0,0.00016383,2]
[401070895,1767903041550,-500.0,0.00016383,2]
[401070896,1767903041559,-275.32921409,0.00016383,2]
[401070897,1767903041568,-500.0,0.00016383,2]
[401070898,1767903041578,-833.0,0.000164,2]
[401070899,1767903041587,-162.0,0.000164,2]
[401070900,1767903041597,-833.0,0.000164,2]
[401070901,1767903041606,-162.0,0.000164,2]
[401070902,1767903041615,-833.0,0.000164,2]
[401070903,1767903041624,-162.0,0.000164,2]
[401070904,1767903041634,-833.0,0.000164,2]
[401070905,1767903041643,-162.0,0.000164,2]
[401070906,1767903041652,-833.0,0.000164,2]
[401070907,1767903041661,-833.0,0.000164,2]
[401070908,1767903041671,-833.0,0.000164,2]
[401070909,1767903041680,-833.0,0.000164,2]
[401070910,1767903041689,-162.0,0.000164,2]
[401070911,1767903041698,-162.0,0.000164,2]
[401070912,1767903041708,-833.0,0.000164,2]
[401070913,1767903041717,-552.0,0.000164,2]
[401070914,1767903041726,-2000.0,0.00016406,2]
[401070915,1767903041736,-2000.0,0.00016406,2]
[401070916,1767903041746,-2000.0,0.00016406,2]
[401070917,1767903041755,-500.0,0.00016423,2]
[401070918,1767903041765,-819.99,0.00016423,2]
[401070919,1767903041774,-500.0,0.00016423,2]
[401070920,1767903041783,-516.18277591,0.00016423,2]
[401070921,1767903041792,-500.0,0.00016437,2]
[401070922,1767903041802,-568.35,0.00016437,2]
[401070923,1767903041811,-979.88092702,0.00016438,2]
[401070924,1767903041820,-1090.43412186,0.00016438,2]
[401070925,1767903041830,-2879.33418479,0.00016438,2]
[401070926,1767903041840,-1119.21541804,0.00016438,2]
[401070927,1767903041849,-3546.0,0.00016438,2]
[401070928,1767903041859,-500.0,0.00016438,2]
[401070929,1767903041868,-500.0,0.00016438,2]
[401070930,1767903041877,-500.0,0.00016438,2]
[401070931,1767903041886,-500.0,0.00016438,2]
[401070932,1767903041896,-500.0,0.00016438,2]
[401070933,1767903041905,-500.0,0.00016438,2]
[401070934,1767903041914,-500.0,0.00016438,2]
[401070935,1767903041923,-500.0,0.00016438,2]
[401070936,1767903041932,-500.0,0.00016438,2]
[401070937,1767903041941,-500.0,0.00016438,2]
[401070938,1767903041951,-500.0,0.00016438,2]
[401070939,1767903041961,-500.0,0.00016438,2]
[401070940,1767903041971,-500.0,0.00016438,2]
[401070941,1767903041980,-500.0,0.00016438,2]
[401070942,1767903041990,-500.0,0.00016438,2]
[401070943,1767903041999,-500.0,0.00016438,2]
[401070944,1767903042009,-500.0,0.00016438,2]
[401070945,1767903042019,-500.0,0.00016438,2]
[401070946,1767903042028,-500.0,0.00016438,2]
[401070947,1767903042038,-500.0,0.00016438,2]
[401070948,1767903042047,-500.0,0.00016438,2]
[401070949,1767903042057,-500.0,0.00016438,2]
[401070950,1767903042067,-500.0,0.00016438,2]
[401070951,1767903042076,-500.0,0.00016438,2]
[401070952,1767903042086,-500.0,0.00016438,2]
[401070953,1767903042096,-500.0,0.00016438,2]
[401070954,1767903042105,-500.0,0.00016438,2]
[401070955,1767903042115,-500.0,0.00016438,2]
[401070956,1767903042125,-500.0,0.00016438,2]
[401070957,1767903042134,-500.0,0.00016438,2]
[401070958,1767903042144,-500.0,0.00016438,2]
[401070959,1767903042154,-500.0,0.00016438,2]
[401070960,1767903042163,-500.0,0.00016438,2]
[401070961,1767903042173,-500.0,0.00016438,2]
[401070962,1767903042182,-500.0,0.00016438,2]
[401070963,1767903042192,-500.0,0.00016438,2]
[401070964,1767903042202,-500.0,0.00016438,2]
[401070965,1767903042211,-500.0,0.00016438,2]
[401070966,1767903042221,-500.0,0.00016438,2]
[401070967,1767903042230,-500.0,0.00016438,2]
[401070968,1767903042240,-500.0,0.00016438,2]
[401070969,1767903042250,-500.0,0.00016438,2]
[401070970,1767903042260,-500.0,0.00016438,2]
[401070971,1767903042270,-498.59304253,0.00016438,2]
[401070972,1767903042280,-500.0,0.00016438,2]
[401070973,1767903042289,-500.0,0.00016438,2]
[401070974,1767903042299,-500.0,0.00016438,2]
[401070975,1767903042308,-500.0,0.00016438,2]
[401070976,1767903042318,-500.0,0.00016438,2]
[401070977,1767903042327,-500.0,0.00016438,2]
[401070978,1767903042337,-500.0,0.00016438,2]
[401070979,1767903042347,-500.0,0.00016438,2]
[401070980,1767903042356,-500.0,0.00016438,2]
[401070981,1767903042366,-500.0,0.00016438,2]
[401070982,1767903042375,-500.0,0.00016438,2]
[401070983,1767903042386,-800.0,0.00016438,2]
[401070984,1767903042395,-24062.0,0.00016438,2]
[401070985,1767903042405,-500.0,0.00016493,2]
[401070986,1767903042416,-500.0,0.00016493,2]
[401070987,1767903042436,-500.0,0.00016493,2]
[401070988,1767903042446,-500.0,0.00016493,2]
[401070989,1767903042457,-500.0,0.00016493,2]
[401070990,1767903042467,-500.0,0.00016548,2]
[401070991,1767903042477,-310.58203018,0.00016548,2]
[401070992,1767903042486,-189.97512683,0.00016548,2]
[401070993,1767903042496,-585.48487047,0.00016548,2]
[401070994,1767903042507,-500.0,0.00016548,2]
[401070995,1767903042516,-1000.0,0.00016552,2]
[401070996,1767903042526,-1000.0,0.00016578,2]
[401070997,1767903042535,-289.85184336,0.00016603,2]
[401070998,1767903042545,-500.0,0.00016603,2]
[401070999,1767903042554,-19119.49803204,0.00016605,2]
[401071000,1767903042563,-157.72323008,0.0001665,2]
[401071001,1767903042574,-208.22403406,0.00016657,2]
[401071002,1767903042584,-1252.0,0.00016686,2]
[401071003,1767903042593,-3546.0,0.00016712,2]
[401071004,1767903042603,-165.16,0.00016712,2]
[401071005,1767903042614,-833.0,0.0001672,2]
[401071006,1767903042623,-833.0,0.0001672,2]
[401071007,1767903042632,-162.0,0.0001672,2]
[401071008,1767903042642,-162.0,0.0001672,2]
[401071009,1767903042653,-833.0,0.0001672,2]
[401071010,1767903042662,-162.0,0.0001672,2]
[401071011,1767903042672,-162.0,0.0001672,2]
[401071024,1767903042941,-833.0,0.0001672,2]
[401071025,1767903042957,-1000.0,0.0001672,2]
[401071026,1767903042968,-1000.0,0.00016781,2]
[401071027,1767903042977,-1000.0,0.00016819,2]
[401071028,1767903042987,-1000.0,0.00016864,2]
[401071029,1767903042997,-1000.0,0.00016881,2]
[401071030,1767903043007,-4609.0,0.00016926,2]
[401071031,1767903043016,-993.92526434,0.00016929,2]
[401071032,1767903043026,-2500.0,0.00016954,2]
[401071033,1767903043036,-2500.0,0.00016954,2]
[401071034,1767903043047,-2199.80942896,0.00016954,2]
[401071035,1767903043056,-500.0,0.00016976,2]
[401071036,1767903043066,-819.99,0.00016976,2]
[401071037,1767903043076,-500.0,0.00016976,2]
[401071038,1767903043086,-151.0,0.00016983,2]
[401071039,1767903043095,-3546.0,0.00016986,2]
[401071040,1767903043104,-482.72,0.00016989,2]
[401071041,1767903043115,-776.2285,0.00017,2]
[401071042,1767903043124,-4000.0,0.00017,2]
[401071043,1767903043133,-1000.0,0.00017002,2]
[401071044,1767903043142,-1364.91486209,0.00017021,2]
[401071045,1767903043152,-833.0,0.0001704,2]
[401071046,1767903043161,-162.0,0.0001704,2]
[401071047,1767903043170,-833.0,0.0001704,2]
[401071048,1767903043179,-833.0,0.0001704,2]
[401071049,1767903043189,-833.0,0.0001704,2]
[401071050,1767903043199,-162.0,0.0001704,2]
[401071051,1767903043208,-833.0,0.0001704,2]
[401071052,1767903043217,-833.0,0.0001704,2]
[401071053,1767903043226,-833.0,0.0001704,2]
[401071054,1767903043235,-162.0,0.0001704,2]
[401071055,1767903043245,-833.0,0.0001704,2]
[401071056,1767903043254,-1000.0,0.00017044,2]
[401071057,1767903043263,-1000.0,0.00017055,2]
[401071058,1767903043273,-705.01,0.00017098,2]
[401071059,1767903043282,-500.0,0.00017098,2]
[401071060,1767903043291,-500.0,0.00017098,2]
[401071061,1767903043301,-300.0,0.00017099,2]
[401071062,1767903043311,-322.6107,0.00017099,2]
[401071063,1767903043321,-9211.34798985,0.00017099,2]
[401071064,1767903043331,-695.39793187,0.00017099,2]
[401071065,1767903043341,-500.0,0.00017099,2]
[401071066,1767903043350,-151.0,0.00017099,2]
[401071067,1767903043359,-500.0,0.00017099,2]
[401071068,1767903043370,-500.0,0.00017099,2]
[401071069,1767903043380,-151.0,0.00017099,2]
[401071070,1767903043391,-500.0,0.00017099,2]
[401071071,1767903043402,-162.7023203,0.00017099,2]
[401071072,1767903043411,-500.0,0.00017099,2]
[401071073,1767903043424,-500.0,0.00017099,2]
[401071074,1767903043434,-500.0,0.00017099,2]
[401071075,1767903043444,-500.0,0.00017099,2]
[401071076,1767903043454,-1500.0,0.00017099,2]
[401071077,1767903043465,-500.0,0.00017099,2]
[401071078,1767903043474,-500.0,0.00017099,2]
[401071079,1767903043483,-1500.0,0.00017099,2]
[401071080,1767903043493,-500.0,0.00017099,2]
[401071081,1767903043502,-500.0,0.00017099,2]
[401071082,1767903043511,-1500.0,0.00017099,2]
[401071083,1767903043519,-500.0,0.00017099,2]
[401071084,1767903043528,-500.0,0.00017099,2]
[401071085,1767903043538,-1500.0,0.00017099,2]
[401071086,1767903043547,-500.0,0.00017099,2]
[401071087,1767903043556,-500.0,0.00017099,2]
[401071088,1767903043565,-1500.0,0.00017099,2]
[401071090,1767903043573,-500.0,0.00017099,2]
[401071091,1767903043583,-500.0,0.00017099,2]
[401071093,1767903043592,-1500.0,0.00017099,2]
[401071095,1767903043601,-500.0,0.00017099,2]
[401071098,1767903043611,-500.0,0.00017099,2]
[401071099,1767903043620,-1500.0,0.00017099,2]
[401071101,1767903043629,-500.0,0.00017099,2]
[401071103,1767903043638,-500.0,0.00017099,2]
[401071105,1767903043648,-1500.0,0.00017099,2]
[401071106,1767903043657,-500.0,0.00017099,2]
[401071107,1767903043667,-500.0,0.00017099,2]
[401071108,1767903043678,-1500.0,0.00017099,2]
[401071109,1767903043688,-1500.0,0.00017099,2]
[401071110,1767903043697,-1500.0,0.00017099,2]
[401071111,1767903043707,-1500.0,0.00017099,2]
[401071112,1767903043716,-201.93286099,0.00017099,2]
[401071113,1767903043725,-151.0,0.00017099,2]
[401071114,1767903043734,-578.20924308,0.00017099,2]
[401071115,1767903043743,-250.0,0.00017099,2]
[401071116,1767903043752,-250.0,0.00017099,2]
[401071117,1767903043762,-500.0,0.00017099,2]
[401071118,1767903043771,-250.0,0.00017099,2]
[401071119,1767903043781,-250.0,0.00017099,2]
[401071120,1767903043790,-500.0,0.00017099,2]
[401071121,1767903043800,-500.0,0.00017099,2]
[401071122,1767903043810,-250.0,0.00017099,2]
[401071123,1767903043820,-500.0,0.00017099,2]
[401071124,1767903043831,-500.0,0.00017099,2]
[401071125,1767903043840,-394.3952879,0.00017099,2]
[401071126,1767903043849,-500.0,0.00017099,2]
[401071127,1767903043859,-500.0,0.00017099,2]
[401071128,1767903043869,-500.0,0.00017099,2]
[401071129,1767903043879,-500.0,0.00017099,2]
[401071130,1767903043890,-500.0,0.00017099,2]
[401071131,1767903043902,-500.0,0.00017099,2]
[401071132,1767903043912,-500.0,0.00017099,2]
[401071133,1767903043921,-500.0,0.00017099,2]
[401071134,1767903043930,-500.0,0.00017099,2]
[401071135,1767903043939,-500.0,0.00017099,2]
[401071136,1767903043948,-500.0,0.00017099,2]
[401071137,1767903043957,-500.0,0.00017099,2]
[401071138,1767903043966,-500.0,0.00017099,2]
[401071139,1767903043975,-500.0,0.00017099,2]
[401071140,1767903043985,-500.0,0.00017099,2]
[401071141,1767903043994,-260.34840278,0.00017099,2]
[401071142,1767903044003,-500.0,0.00017099,2]
[401071143,1767903044012,-553.64373807,0.00017099,2]
[401071144,1767903044021,-500.0,0.00017099,2]
[401071145,1767903044030,-500.0,0.00017099,2]
[401071146,1767903044039,-250.0,0.00017099,2]
[401071147,1767903044048,-250.0,0.00017099,2]
[401071148,1767903044057,-151.0,0.00017099,2]
[401071149,1767903044066,-250.0,0.00017099,2]
[401071150,1767903044075,-250.0,0.00017099,2]
[401071151,1767903044085,-250.0,0.00017099,2]
[401071152,1767903044094,-500.0,0.00017099,2]
[401071153,1767903044103,-250.0,0.00017099,2]
[401071154,1767903044112,-500.0,0.00017099,2]
[401071155,1767903044122,-250.0,0.00017099,2]
[401071156,1767903044131,-500.0,0.00017099,2]
[401071157,1767903044141,-250.0,0.00017099,2]
[401071158,1767903044150,-500.0,0.00017099,2]
[401071159,1767903044160,-250.0,0.00017099,2]
[401071160,1767903044171,-250.0,0.00017099,2]
[401071161,1767903044179,-500.0,0.00017099,2]